{"text_format":"3","workbook":"xlsx","n_sheets":2,"sheets":["Inventário de Equipamento","Definições"],"not_rendered":{"defined_names":4},"read":"whole","date_system":"1900"}

{"sheet":"Inventário de Equipamento","index":0,"n_rows":35,"n_cols":6,"rows_kept":35,"merged":[[0,1,2,2],[0,4,0,5]]}
[]
[{"$nulls":4},"Realçar itens anteriores a:"]
[{"$nulls":4},4]
[]
[null,"CÓDIGO DO EQUIPAMENTO","NOME DO ITEM","ENTREGUE A","DATA DA ENTREGA","IDADE DO ITEM"]
[null,"ITEM0001","cadeira","Empregado 1",{"$f":"TODAY()-25","v":"2012-10-27"},{"$f":"IF(tabelaInventárioEquipamento[[#This Row],[DATA DA ENTREGA]]<>\"\",TODAY()-tabelaInventárioEquipamento[[#This Row],[DATA DA ENTREGA]],\"\")","v":{"v":25,"d":"25 dias"}}]
[null,"ITEM0002","impressora a laser","Empregado 2",{"$f":"TODAY()-479","v":"2011-07-31"},{"$f":"IF(tabelaInventárioEquipamento[[#This Row],[DATA DA ENTREGA]]<>\"\",TODAY()-tabelaInventárioEquipamento[[#This Row],[DATA DA ENTREGA]],\"\")","v":{"v":479,"d":"479 dias"}}]
[null,"ITEM0003","digitalizador","Empregado 3",{"$f":"TODAY()-177","v":"2012-05-28"},{"$f":"IF(tabelaInventárioEquipamento[[#This Row],[DATA DA ENTREGA]]<>\"\",TODAY()-tabelaInventárioEquipamento[[#This Row],[DATA DA ENTREGA]],\"\")","v":{"v":177,"d":"177 dias"}}]
[null,"ITEM0004","impressora a laser","Empregado 7",{"$f":"TODAY()-18","v":"2012-11-03"},{"$f":"IF(tabelaInventárioEquipamento[[#This Row],[DATA DA ENTREGA]]<>\"\",TODAY()-tabelaInventárioEquipamento[[#This Row],[DATA DA ENTREGA]],\"\")","v":{"v":18,"d":"18 dias"}}]
[null,"ITEM0005","máquina de café","Empregado 20",{"$f":"TODAY()-227","v":"2012-04-08"},{"$f":"IF(tabelaInventárioEquipamento[[#This Row],[DATA DA ENTREGA]]<>\"\",TODAY()-tabelaInventárioEquipamento[[#This Row],[DATA DA ENTREGA]],\"\")","v":{"v":227,"d":"227 dias"}}]
[null,"ITEM0006","digitalizador","Empregado 14",{"$f":"TODAY()-50","v":"2012-10-02"},{"$f":"IF(tabelaInventárioEquipamento[[#This Row],[DATA DA ENTREGA]]<>\"\",TODAY()-tabelaInventárioEquipamento[[#This Row],[DATA DA ENTREGA]],\"\")","v":{"v":50,"d":"50 dias"}}]
[null,"ITEM0007","mesa","Empregado 4",{"$f":"TODAY()-120","v":"2012-07-24"},{"$f":"IF(tabelaInventárioEquipamento[[#This Row],[DATA DA ENTREGA]]<>\"\",TODAY()-tabelaInventárioEquipamento[[#This Row],[DATA DA ENTREGA]],\"\")","v":{"v":120,"d":"120 dias"}}]
[null,"ITEM0008","máquina fotocopiadora","Empregado 12",{"$f":"TODAY()-499","v":"2011-07-11"},{"$f":"IF(tabelaInventárioEquipamento[[#This Row],[DATA DA ENTREGA]]<>\"\",TODAY()-tabelaInventárioEquipamento[[#This Row],[DATA DA ENTREGA]],\"\")","v":{"v":499,"d":"499 dias"}}]
[null,"ITEM0009","monitor extra","Empregado 8",{"$f":"TODAY()-30","v":"2012-10-22"},{"$f":"IF(tabelaInventárioEquipamento[[#This Row],[DATA DA ENTREGA]]<>\"\",TODAY()-tabelaInventárioEquipamento[[#This Row],[DATA DA ENTREGA]],\"\")","v":{"v":30,"d":"30 dias"}}]
[null,"ITEM0010","quadro","Empregado 19",{"$f":"TODAY()-50","v":"2012-10-02"},{"$f":"IF(tabelaInventárioEquipamento[[#This Row],[DATA DA ENTREGA]]<>\"\",TODAY()-tabelaInventárioEquipamento[[#This Row],[DATA DA ENTREGA]],\"\")","v":{"v":50,"d":"50 dias"}}]
[null,"ITEM0011","máquina fotocopiadora","Empregado 12",{"$f":"TODAY()-450","v":"2011-08-29"},{"$f":"IF(tabelaInventárioEquipamento[[#This Row],[DATA DA ENTREGA]]<>\"\",TODAY()-tabelaInventárioEquipamento[[#This Row],[DATA DA ENTREGA]],\"\")","v":{"v":450,"d":"450 dias"}}]
[null,"ITEM0012","papel de carta","Empregado 18",{"$f":"TODAY()-420","v":"2011-09-28"},{"$f":"IF(tabelaInventárioEquipamento[[#This Row],[DATA DA ENTREGA]]<>\"\",TODAY()-tabelaInventárioEquipamento[[#This Row],[DATA DA ENTREGA]],\"\")","v":{"v":420,"d":"420 dias"}}]
[null,"ITEM0013","monitor extra","Empregado 8",{"$f":"TODAY()-250","v":"2012-03-16"},{"$f":"IF(tabelaInventárioEquipamento[[#This Row],[DATA DA ENTREGA]]<>\"\",TODAY()-tabelaInventárioEquipamento[[#This Row],[DATA DA ENTREGA]],\"\")","v":{"v":250,"d":"250 dias"}}]
[null,"ITEM0014","máquina de café","Empregado 9",{"$f":"TODAY()-45","v":"2012-10-07"},{"$f":"IF(tabelaInventárioEquipamento[[#This Row],[DATA DA ENTREGA]]<>\"\",TODAY()-tabelaInventárioEquipamento[[#This Row],[DATA DA ENTREGA]],\"\")","v":{"v":45,"d":"45 dias"}}]
[null,"ITEM0015","papel de carta","Empregado 13",{"$f":"TODAY()-502","v":"2011-07-08"},{"$f":"IF(tabelaInventárioEquipamento[[#This Row],[DATA DA ENTREGA]]<>\"\",TODAY()-tabelaInventárioEquipamento[[#This Row],[DATA DA ENTREGA]],\"\")","v":{"v":502,"d":"502 dias"}}]
[null,"ITEM0016","digitalizador","Empregado 1",{"$f":"TODAY()-350","v":"2011-12-07"},{"$f":"IF(tabelaInventárioEquipamento[[#This Row],[DATA DA ENTREGA]]<>\"\",TODAY()-tabelaInventárioEquipamento[[#This Row],[DATA DA ENTREGA]],\"\")","v":{"v":350,"d":"350 dias"}}]
[null,"ITEM0017","máquina fotocopiadora","Empregado 19",{"$f":"TODAY()-125","v":"2012-07-19"},{"$f":"IF(tabelaInventárioEquipamento[[#This Row],[DATA DA ENTREGA]]<>\"\",TODAY()-tabelaInventárioEquipamento[[#This Row],[DATA DA ENTREGA]],\"\")","v":{"v":125,"d":"125 dias"}}]
[null,"ITEM0018","quadro","Empregado 15",{"$f":"TODAY()-90","v":"2012-08-23"},{"$f":"IF(tabelaInventárioEquipamento[[#This Row],[DATA DA ENTREGA]]<>\"\",TODAY()-tabelaInventárioEquipamento[[#This Row],[DATA DA ENTREGA]],\"\")","v":{"v":90,"d":"90 dias"}}]
[null,"ITEM0019","cadeira","Empregado 16",{"$f":"TODAY()-730","v":"2010-11-22"},{"$f":"IF(tabelaInventárioEquipamento[[#This Row],[DATA DA ENTREGA]]<>\"\",TODAY()-tabelaInventárioEquipamento[[#This Row],[DATA DA ENTREGA]],\"\")","v":{"v":730,"d":"730 dias"}}]
[null,"ITEM0020","pano do pó (1 conjunto)","Empregado 3",{"$f":"TODAY()-540","v":"2011-05-31"},{"$f":"IF(tabelaInventárioEquipamento[[#This Row],[DATA DA ENTREGA]]<>\"\",TODAY()-tabelaInventárioEquipamento[[#This Row],[DATA DA ENTREGA]],\"\")","v":{"v":540,"d":"540 dias"}}]
[null,"ITEM0021","impressora a laser","Empregado 7",{"$f":"TODAY()-18","v":"2012-11-03"},{"$f":"IF(tabelaInventárioEquipamento[[#This Row],[DATA DA ENTREGA]]<>\"\",TODAY()-tabelaInventárioEquipamento[[#This Row],[DATA DA ENTREGA]],\"\")","v":{"v":18,"d":"18 dias"}}]
[null,"ITEM0022","computador portátil","Empregado 8",{"$f":"TODAY()-283","v":"2012-02-12"},{"$f":"IF(tabelaInventárioEquipamento[[#This Row],[DATA DA ENTREGA]]<>\"\",TODAY()-tabelaInventárioEquipamento[[#This Row],[DATA DA ENTREGA]],\"\")","v":{"v":283,"d":"283 dias"}}]
[null,"ITEM0023","papel de carta","Empregado 9",{"$f":"TODAY()-479","v":"2011-07-31"},{"$f":"IF(tabelaInventárioEquipamento[[#This Row],[DATA DA ENTREGA]]<>\"\",TODAY()-tabelaInventárioEquipamento[[#This Row],[DATA DA ENTREGA]],\"\")","v":{"v":479,"d":"479 dias"}}]
[null,"ITEM0024","impressora a laser","Empregado 19",{"$f":"TODAY()-355","v":"2011-12-02"},{"$f":"IF(tabelaInventárioEquipamento[[#This Row],[DATA DA ENTREGA]]<>\"\",TODAY()-tabelaInventárioEquipamento[[#This Row],[DATA DA ENTREGA]],\"\")","v":{"v":355,"d":"355 dias"}}]
[null,"ITEM0025","mesa","Empregado 7",{"$f":"TODAY()-28","v":"2012-10-24"},{"$f":"IF(tabelaInventárioEquipamento[[#This Row],[DATA DA ENTREGA]]<>\"\",TODAY()-tabelaInventárioEquipamento[[#This Row],[DATA DA ENTREGA]],\"\")","v":{"v":28,"d":"28 dias"}}]
[null,"ITEM0026","quadro","Empregado 8",{"$f":"TODAY()-28","v":"2012-10-24"},{"$f":"IF(tabelaInventárioEquipamento[[#This Row],[DATA DA ENTREGA]]<>\"\",TODAY()-tabelaInventárioEquipamento[[#This Row],[DATA DA ENTREGA]],\"\")","v":{"v":28,"d":"28 dias"}}]
[null,"ITEM0027","computador portátil","Empregado 19",{"$f":"TODAY()-736","v":"2010-11-16"},{"$f":"IF(tabelaInventárioEquipamento[[#This Row],[DATA DA ENTREGA]]<>\"\",TODAY()-tabelaInventárioEquipamento[[#This Row],[DATA DA ENTREGA]],\"\")","v":{"v":736,"d":"736 dias"}}]
[null,"ITEM0028","mesa","Empregado 12",{"$f":"TODAY()-68","v":"2012-09-14"},{"$f":"IF(tabelaInventárioEquipamento[[#This Row],[DATA DA ENTREGA]]<>\"\",TODAY()-tabelaInventárioEquipamento[[#This Row],[DATA DA ENTREGA]],\"\")","v":{"v":68,"d":"68 dias"}}]
[null,"ITEM0029","digitalizador","Empregado 14",{"$f":"TODAY()-67","v":"2012-09-15"},{"$f":"IF(tabelaInventárioEquipamento[[#This Row],[DATA DA ENTREGA]]<>\"\",TODAY()-tabelaInventárioEquipamento[[#This Row],[DATA DA ENTREGA]],\"\")","v":{"v":67,"d":"67 dias"}}]
[null,"ITEM0030","máquina de café","Empregado 3",{"$f":"TODAY()-149","v":"2012-06-25"},{"$f":"IF(tabelaInventárioEquipamento[[#This Row],[DATA DA ENTREGA]]<>\"\",TODAY()-tabelaInventárioEquipamento[[#This Row],[DATA DA ENTREGA]],\"\")","v":{"v":149,"d":"149 dias"}}]

{"sheet":"Definições","index":1,"n_rows":23,"n_cols":4,"rows_kept":23}
[]
[]
[null,"EMPREGADOS",null,"ITENS"]
[null,"Empregado 1",null,"cadeira"]
[null,"Empregado 2",null,"máquina de café"]
[null,"Empregado 3",null,"máquina fotocopiadora"]
[null,"Empregado 4",null,"computador de secretária"]
[null,"Empregado 5",null,"pano do pó (1 conjunto)"]
[null,"Empregado 6",null,"monitor extra"]
[null,"Empregado 7",null,"impressora de jato de tinta"]
[null,"Empregado 8",null,"computador portátil"]
[null,"Empregado 9",null,"impressora a laser"]
[null,"Empregado 10",null,"marcadores (3 conjuntos)"]
[null,"Empregado 11",null,"digitalizador"]
[null,"Empregado 12",null,"papel de carta"]
[null,"Empregado 13",null,"mesa"]
[null,"Empregado 14",null,"pen USB"]
[null,"Empregado 15",null,"quadro"]
[null,"Empregado 16"]
[null,"Empregado 17"]
[null,"Empregado 18"]
[null,"Empregado 19"]
[null,"Empregado 20"]